Cogmind - Beta 15 @@@ ROGUE MODE // 2025.05.17 @ 13:55:30 Player: Wooliertree Result: Destroyed by G-50 Soldier with Heavy Laser Performance ------------- Evolutions (4) 2000 Regions Visited (9) 1800 Robots Destroyed (82) 410 Value Destroyed (2162) 2162 Prototype IDs (0) 0 Alien Tech Used (0) 0 Bonus (184) 184 TOTAL SCORE: 6556 Bonus ------- Follower Combat Kills 184 Cogmind --------- Core Integrity 0/850 Matter 46/300 Energy 100/100 System Corruption 1% Temperature Cool (9) Movement Core (350) Ox6 Location -6/Factory Parts ------- > --- POWER (2) -------- (None) > --- PROPULSION (3) --- (None) > --- UTILITY (7) ------ Large Storage Unit Enhanced Optical Array Target Analyzer > --- WEAPON (3) ------- (None) > --- INVENTORY (15) --- System Shield Grenade Launcher Peak State ------------ > --- POWER ------------ Light Nuclear Core Light Nuclear Core > --- PROPULSION ------- Improved Carbon-fiber Leg Improved Titanium Leg Flexi-carbon Leg > --- UTILITY ---------- Large Storage Unit Improved Sensor Array Tactical Coordination Suite Target Analyzer Weapon Cycler Hardened Medium Armor Plating Reactive Plating > --- WEAPON ----------- Advanced Assault Cannon Advanced Assault Cannon Advanced Assault Cannon > --- INVENTORY -------- Carbon-fiber Leg Improved Carbon-fiber Leg Enhanced Optical Array Transmission Jammer System Shield Grenade Launcher [Rating: 55] Favorites ----------- Power Light Nuclear Core Engine Improved Ion Engine Power Core Light Nuclear Core Propulsion Carbon-fiber Leg Leg Carbon-fiber Leg Utility Target Analyzer Device Structural Scanner Storage Small Storage Unit Processor Target Analyzer Hackware Hacking Suite Protection Reactive Plating Weapon Advanced Assault Cannon Energy Gun EM Shotgun Energy Cannon Particle Cannon Ballistic Gun Heavy Assault Rifle Ballistic Cannon Advanced Assault Cannon Launcher Grenade Launcher Slashing Weapon Mining Claw Build | -11 -10 -10 -9 -9 -8 -7 -7 -7 -6 ------- Run | Yrd Mat Min Mat Sto Mat Fac Low Low Fac Slots Evolved 8 | . . . 2 . 2 2 . . 2 Power 1 | . . . . . . 1 . . . Propulsion 1 | . . . . . . . . . 1 Utility 5 | . . . 2 . 2 . . . 1 Weapon 1 | . . . . . . 1 . . . Parts Attached 53 | 7 . 4 11 5 10 3 5 . 8 Power 10 | 1 . 1 2 1 1 . 2 . 2 Engine 5 | 1 . 1 2 1 . . . . . Core 5 | . . . . . 1 . 2 . 2 Reactor . | . . . . . . . . . . Propulsion 13 | 2 . 2 2 1 2 2 . . 2 Treads . | . . . . . . . . . . Leg 13 | 2 . 2 2 1 2 2 . . 2 Wheel . | . . . . . . . . . . Hover . | . . . . . . . . . . Flight . | . . . . . . . . . . Utility 17 | 2 . . 4 1 3 . 3 . 4 Device 8 | 1 . . 3 . 1 . . . 3 Storage 2 | 1 . . . . . . 1 . . Processor 2 | . . . 1 . . . . . 1 Hackware 2 | . . . . 1 1 . . . . Protection 3 | . . . . . 1 . 2 . . Artifact . | . . . . . . . . . . Weapon 13 | 2 . 1 3 2 4 1 . . . Energy Gun 1 | . . . 1 . . . . . . Energy Cannon 1 | . . . 1 . . . . . . Ballistic Gun 5 | 2 . . 1 2 . . . . . Ballistic Cannon 4 | . . 1 . . 2 1 . . . Launcher 1 | . . . . . 1 . . . . Special Weapon . | . . . . . . . . . . Impact Weapon . | . . . . . . . . . . Slashing Weapon 1 | . . . . . 1 . . . . Piercing Weapon . | . . . . . . . . . . Special Melee Weapon . | . . . . . . . . . . Unidentified Prototypes . | . . . . . . . . . . Parts Lost 36 | . . 5 1 3 4 . 4 . 19 Power 9 | . . 2 . 1 . . 2 . 4 Propulsion 8 | . . . . 1 2 . . . 5 Utility 11 | . . 1 . . 1 . 2 . 7 Weapon 8 | . . 2 1 1 1 . . . 3 Highest Loss Streak 8 | . . 3 1 2 2 . 2 . 8 To Critical Strikes . | . . . . . . . . . . Average Backups 6 | . 4 5 6 7 7 7 7 8 6 Power . | . 1 1 . . . . . 1 . Propulsion 1 | . 1 1 2 1 . . 1 1 1 Utility 3 | . 1 2 2 3 3 4 4 5 3 Weapon 1 | . . . . 1 2 1 1 1 1 Tool/Special . | . . . . . . . . . . Unused Backups 6 | . . 1 1 1 1 . . . 2 Power . | . . . . . . . . . . Propulsion 2 | . . 1 1 . . . . . . Utility 2 | . . . . . 1 . . . 1 Weapon 2 | . . . . 1 . . . . 1 Tool/Special . | . . . . . . . . . . Average Slot Usage (%) 93 | . 100 98 94 99 94 99 95 100 75 Engine 5 | . 14 13 11 11 1 7 . . . Core 5 | . . . . . 7 7 11 15 8 Leg 18 | . 28 28 22 21 14 15 15 15 14 Device 15 | . 14 13 20 19 13 15 15 15 13 Storage 9 | . 14 14 11 11 9 7 7 7 6 Processor 7 | . . . 8 11 9 7 7 7 7 Hackware 3 | . . . . 2 13 7 3 . . Protection 5 | . . . . . 8 7 10 15 10 Energy Cannon 1 | . . . 9 1 . . . . . Ballistic Gun 9 | . 28 22 4 20 12 . . . . Ballistic Cannon 9 | . . 4 2 . 3 22 23 23 14 Peak Build Rating 55 | 7 7 8 21 21 33 41 45 45 55 Average Rating 27 | 5 7 6 17 19 27 40 40 45 39 On Entrance 22 | . 7 7 4 19 21 33 41 45 45 Naked Turns . | . . . . . . . . . . Heaviest Build 77 | 15 15 16 22 22 34 47 77 77 77 Greatest Support 58 | 20 20 20 30 30 30 36 36 36 58 Greatest Overweight (x) 10 | . . . . . 1 1 2 2 10 Average Overweight (x) . | . . . . . . 1 . 2 1 Largest Inventory Capacity 15 | 8 8 8 8 8 8 8 15 15 15 Average Capacity 9 | 6 8 8 8 8 8 8 8 15 15 Most Carried 8 | 1 6 8 8 8 8 8 8 8 8 Average Carried 6 | . 4 5 6 7 7 7 7 8 6 Final Capacity 15 | 8 8 8 8 8 8 8 15 15 15 Final Carried 8 | 1 6 4 7 8 8 8 8 8 2 Class Distribution -------------------- 32% | Mutant 21% | Tank 16% | Skirmisher 14% | Scavenger-Mutant 8% | Infiltrator-Mutant 5% | Commander-Mutant Dominant Class ---------------- Mutant | -10/Materials Mutant | -10/Mines Mutant | -9/Materials Infiltrator-Mutant | -9/Storage Scavenger-Mutant | -8/Materials Skirmisher | -7/Factory Skirmisher | -7/Lower Caves Tank | -7/Lower Caves Tank | -6/Factory Resources | -11 -10 -10 -9 -9 -8 -7 -7 -7 -6 ----------- Run | Yrd Mat Min Mat Sto Mat Fac Low Low Fac Matter Collected 1856 | 294 88 46 139 372 265 86 545 . 21 Remotely . | . . . . . . . . . . Salvage Created 2659 | 99 203 214 356 715 708 . 321 . 43 Parts 164 | 5 14 14 26 37 50 . 15 . 3 Haulers Intercepted 4 | . . . 1 2 1 . . . . Recyclers Shooed 1 | . 1 . . . . . . . . Parts Field Recycled . | . . . . . . . . . . Retrieved Matter . | . . . . . . . . . . Parts Self-Destructed 14 | . . . . . . . 14 . . Prevented . | . . . . . . . . . . Kills | -11 -10 -10 -9 -9 -8 -7 -7 -7 -6 ------- Run | Yrd Mat Min Mat Sto Mat Fac Low Low Fac Combat Hostiles Destroyed 63 | . 6 7 7 12 16 . 12 . 3 Guns 44 | . 6 7 4 11 16 . . . . Cannons 19 | . . . 3 1 . . 12 . 3 Classes Destroyed 13 | 2 3 . 5 1 . . 2 . . Worker 1 | . . . 1 . . . . . . Builder 1 | . . . 1 . . . . . . Tunneler 2 | 1 . . . . 1 . . . . Hauler 4 | . . . 1 2 1 . . . . Recycler 2 | 1 . . . . 1 . . . . Operator 4 | . 1 . . 3 . . . . . Watcher 3 | . . . 2 . 1 . . . . Swarmer 27 | . 3 3 4 2 8 . 4 . 3 Grunt 24 | . 3 4 . 6 6 . 5 . . Brawler 2 | . . . . 1 . . 1 . . Sentry 10 | . . . 3 5 2 . . . . Hunter 1 | . . . . . . . 1 . . Programmer 1 | . . . . . . . 1 . . Best Kill Streak 7 | 2 3 3 7 4 6 . 4 . 2 Combat Bots Only 4 | . 3 3 4 4 4 . 4 . 2 Max Kills in Single Turn 2 | 1 1 2 1 2 1 . 1 . 1 Gunslinging 1 | . . 1 . . . . . . . Exploded . | . . . . . . . . . . Melee . | . . . . . . . . . . Uniques/NPCs Destroyed . | . . . . . . . . . . Combat | -11 -10 -10 -9 -9 -8 -7 -7 -7 -6 -------- Run | Yrd Mat Min Mat Sto Mat Fac Low Low Fac Hostile Shots Fired 579 | . 18 53 49 56 60 . 65 . 278 Missed 161 | . 5 13 8 15 15 . 11 . 94 Hits 418 | . 13 40 41 41 45 . 54 . 184 Melee 2 | . . . . 2 . . . . . Projectile 416 | . 13 40 41 39 45 . 54 . 184 AOE 10 | . . 10 . . . . . . . Critical Strikes 5 | . . 2 . . . . 1 . 2 Damage Taken 5725 | . 151 765 459 538 450 . 740 . 2622 Core 1433 | . 15 169 66 111 107 . 103 . 862 Absorbed by Shields . | . . . . . . . . . . Ignored by Resistances 221 | . . . . . 63 . 101 . 57 Core Remaining (%) 69 | 100 . 26 . 55 80 . . 85 . Volleys Fired 211 | 4 15 22 26 56 45 1 26 . 16 Largest 3 | 2 2 2 2 2 2 3 3 . 3 Hottest 120 | 40 40 50 113 91 46 120 120 . 120 Shots Fired 435 | 8 30 40 51 110 83 3 65 . 45 Gun 285 | 8 30 31 25 108 83 . . . . Cannon 150 | . . 9 26 2 . 3 65 . 45 Launcher . | . . . . . . . . . . Special . | . . . . . . . . . . Kinetic 392 | 8 30 40 10 108 83 3 65 . 45 Thermal 28 | . . . 26 2 . . . . . Explosive . | . . . . . . . . . . Electromagnetic 15 | . . . 15 . . . . . . Robot Hit Streak 15 | 4 5 15 10 15 11 . 8 . 2 Robot Miss Streak 9 | 1 3 3 4 9 3 3 5 . 7 Penetration Max . | . . . . . . . . . . Secondary Targets 6 | . . 2 . . 4 . . . . Max Gunslinging Chain 1 | . . 1 . . 1 . . . . Shots Hit Robots 250 | 6 19 28 33 61 57 . 33 . 13 Core Hits 131 | 3 11 13 19 28 34 . 18 . 5 Critical Kills 1 | . . . . . 1 . . . . Critical Parts Destroyed 6 | . . . . 3 3 . . . . Critical Strikes 7 | . . . . 3 4 . . . . Destroy 7 | . . . . 3 4 . . . . Melee Attacks 4 | . . . . . 4 . . . . Impact . | . . . . . . . . . . Slashing 4 | . . . . . 4 . . . . Piercing . | . . . . . . . . . . Sneak Attacks . | . . . . . . . . . . Combat Hostiles . | . . . . . . . . . . Follow-up Attacks . | . . . . . . . . . . Damage Inflicted 4723 | 76 239 371 695 1136 864 . 909 . 433 Guns 2839 | 76 235 322 297 1047 862 . . . . Cannons 1777 | . . 49 346 41 . . 909 . 432 Explosions 36 | . . . 36 . . . . . . Melee . | . . . . . . . . . . Ramming 71 | . 4 . 16 48 2 . . . 1 Kinetic 4047 | 76 235 371 115 1047 862 . 909 . 432 Thermal 423 | . . . 382 41 . . . . . Explosive . | . . . . . . . . . . Electromagnetic 182 | . . . 182 . . . . . . Impact . | . . . . . . . . . . Slashing . | . . . . . . . . . . Piercing . | . . . . . . . . . . Highest Corruption 4 | . . . . 4 . 1 1 1 1 Average Corruption 1 | . . . . 3 . 1 1 1 1 Corruption Purged . | . . . . . . . . . . Corruption Blocked . | . . . . . . . . . . Effects 26 | . . . . 7 . 1 12 1 5 Message Errors 7 | . . . . 2 . . 4 . 1 Matter Fused 4 | . . . . 1 . 1 1 1 . Heat Flow Errors 3 | . . . . 1 . . 2 . . Energy Discharges 3 | . . . . . . . 2 . 1 Data Loss (minor) 3 | . . . . 1 . . . . 2 Data Loss (major) 2 | . . . . . . . 1 . 1 Alerts 2 | . . . . 1 . . 1 . . Weapon Failures 2 | . . . . 1 . . 1 . . Overload Shots . | . . . . . . . . . . Overflow Damage 74 | . . . 13 . . . 4 . 57 Projectiles 68 | . . . 7 . . . 4 . 57 Explosions 6 | . . . 6 . . . . . . Melee . | . . . . . . . . . . Knockbacks 16 | . . 2 . . . . 7 . 7 Impact 1 | . . . . . . . . . 1 Kinetic 15 | . . 2 . . . . 7 . 6 Secondary . | . . . . . . . . . . Self-Inflicted Damage 25 | . . . 25 . . . . . . Shots 1 | . . . 1 . . . . . . Rammed 2 | . . . . . . . . . 2 Targets Rammed 16 | . 1 . 3 6 2 . . . 4 Kicked 14 | . 1 . 3 6 2 . . . 2 Crushed . | . . . . . . . . . . Highest Temperature 500 | . 2 21 81 90 7 72 469 . 500 Average Temperature 109 | . 2 9 24 22 3 40 146 . 161 Received Heat Transfer 1944 | . 75 242 72 228 153 . 225 . 949 Effects 12 | . . . . . . . 8 . 4 Shutdowns 2 | . . . . . . . 1 . 1 Energy Bleed 2 | . . . . . . . 2 . . Interference 8 | . . . . . . . 5 . 3 Siege Activations . | . . . . . . . . . . Martial Activations . | . . . . . . . . . . Shielding Activations . | . . . . . . . . . . Robots Disrupted . | . . . . . . . . . . Combat Hostiles . | . . . . . . . . . . Robots Corrupted . | . . . . . . . . . . Combat Hostiles . | . . . . . . . . . . Parts Fried . | . . . . . . . . . . Impact Corruptions . | . . . . . . . . . . Robots Melted . | . . . . . . . . . . Combat Hostiles . | . . . . . . . . . . Parts Melted . | . . . . . . . . . . Heat Transferred 753 | . . . 679 74 . . . . . Parts Sabotaged . | . . . . . . . . . . Parts Stolen . | . . . . . . . . . . Parts Stripped . | . . . . . . . . . . Power Chain Reactions 1 | . . . 1 . . . . . . Alert | -11 -10 -10 -9 -9 -8 -7 -7 -7 -6 ------- Run | Yrd Mat Min Mat Sto Mat Fac Low Low Fac Maximum Alert Level 1 | . . . . 1 . . . . . Low Security (%) 89 | 100 100 100 100 51 100 100 . . 100 Level 1 10 | . . . . 48 . . . . . Level 2 . | . . . . . . . . . . Level 3 . | . . . . . . . . . . Level 4 . | . . . . . . . . . . Level 5 . | . . . . . . . . . . High Security . | . . . . . . . . . . Max Security . | . . . . . . . . . . Peak Influence 267 | 5 100 112 106 267 152 16 . . 62 Initial 104 | . . 27 20 . 104 . . . . Average 57 | . 38 72 17 152 65 1 . . 8 Influence Increases 2201 | 10 160 185 233 753 424 31 290 . 115 Destroy 0b10 Robot/C 1460 | . 120 140 140 440 320 . 240 . 60 Destroy 0b10 Robot/NC 90 | 10 5 . 25 30 20 . . . . Destroy Leader 376 | . 30 30 46 156 54 . 50 . 10 Allied During Kill 108 | . . . . 108 . . . . . Successful Hack 54 | . 5 . . 14 15 15 . . 5 Disable Machine 45 | . . 15 15 . . 15 . . . Destroy Structure 23 | . . . 7 5 . 1 . . 10 Partial Spotted 15 | . . . . . 15 . . . . Lose Combat Pursuer 30 | . . . . . . . . . 30 Influence Decreases 2201 | 10 90 203 285 504 673 31 290 . 115 Entered New Map 220 | . . 43 32 . 145 . . . . Time Decay 1211 | 10 90 110 96 284 242 31 250 . 98 Lost Part 187 | . . 50 10 30 40 . 40 . 17 Lost Ally 101 | . . . . 101 . . . . . Purge Threat 482 | . . . 147 89 246 . . . . Squads Dispatched 13 | . 2 . 1 4 1 2 . . 3 Investigation 6 | . 1 . . 1 1 2 . . 1 Extermination 1 | . . . . . . . . . 1 Reinforcement 6 | . 1 . 1 3 . . . . 1 Assault . | . . . . . . . . . . Garrison . | . . . . . . . . . . Intercept . | . . . . . . . . . . Searches Triggered . | . . . . . . . . . . Construction Impeded . | . . . . . . . . . . Haulers Reinforced . | . . . . . . . . . . Active Scanning Responses . | . . . . . . . . . . Cargo Convoy Interrupts . | . . . . . . . . . . Stealth | -11 -10 -10 -9 -9 -8 -7 -7 -7 -6 --------- Run | Yrd Mat Min Mat Sto Mat Fac Low Low Fac Distress Signals 8 | . . . 2 5 1 . . . . Communications Jammed . | . . . . . . . . . . Distress Signals . | . . . . . . . . . . Times Spotted 122 | . 8 13 13 37 23 2 11 . 15 Peak Tracking Total 10 | . 3 10 5 4 5 1 4 . 7 Tactical Retreats 5 | . . . 1 2 . . . . 2 Traps | -11 -10 -10 -9 -9 -8 -7 -7 -7 -6 ------- Run | Yrd Mat Min Mat Sto Mat Fac Low Low Fac Traps Triggered 4 | . 1 . . 2 . . . . 1 Indirectly . | . . . . . . . . . . Trap Hack Attempts . | . . . . . . . . . . Triggered . | . . . . . . . . . . Disarmed . | . . . . . . . . . . Reprogrammed . | . . . . . . . . . . Reused . | . . . . . . . . . . Traps Extracted . | . . . . . . . . . . Installed . | . . . . . . . . . . Triggered . | . . . . . . . . . . Machines | -11 -10 -10 -9 -9 -8 -7 -7 -7 -6 ---------- Run | Yrd Mat Min Mat Sto Mat Fac Low Low Fac Machines Disabled 3 | . . 1 1 . . 1 . . . Max in Single Turn 1 | . . 1 1 . . 1 . . . Garrison Access 1 | . . . . 1 . . . . . Machines Repaired . | . . . . . . . . . . Machines Dismantled . | . . . . . . . . . . Machines Sabotaged . | . . . . . . . . . . Overloaded Fab Kills . | . . . . . . . . . . Hacking | -11 -10 -10 -9 -9 -8 -7 -7 -7 -6 --------- Run | Yrd Mat Min Mat Sto Mat Fac Low Low Fac Machines Accessed 21 | . 2 . 3 8 4 2 . . 2 Terminals 19 | . 2 . 3 7 4 2 . . 1 Fabricators . | . . . . . . . . . . Repair Stations . | . . . . . . . . . . Recycling Units . | . . . . . . . . . . Scanalyzers . | . . . . . . . . . . Garrison Access 2 | . . . . 1 . . . . 1 Total Hacks 56 | . 5 . 9 19 12 8 . . 3 Successful 19 | . 1 . 2 7 5 3 . . 1 Failed 37 | . 4 . 7 12 7 5 . . 2 Catastrophic 9 | . . . 2 3 2 1 . . 1 Database Lockouts . | . . . . . . . . . . Manual 32 | . 3 . 9 9 8 3 . . . Terminals 53 | . 5 . 9 18 12 8 . . 1 Fabricators . | . . . . . . . . . . Repair Stations . | . . . . . . . . . . Recycling Units . | . . . . . . . . . . Scanalyzers . | . . . . . . . . . . Garrison Access 3 | . . . . 1 . . . . 2 Terminal Hacks 18 | . 1 . 2 6 5 3 . . 1 Record 3 | . . . . . . 3 . . . Open Door 2 | . . . . 2 . . . . . Open DSF 1 | . . . . . . . . . 1 Branch Access Points 1 | . . . . . 1 . . . . Alert Level 1 | . . . . 1 . . . . . Unreport Threat 9 | . . . 2 3 4 . . . . Zone Layout 1 | . 1 . . . . . . . . Fabricator Hacks . | . . . . . . . . . . Repair Station Hacks . | . . . . . . . . . . Recycling Unit Hacks . | . . . . . . . . . . Scanalyzer . | . . . . . . . . . . Garrison Access Hacks 1 | . . . . 1 . . . . . Seal Access 1 | . . . . 1 . . . . . Unauthorized Hacks . | . . . . . . . . . . Terminals . | . . . . . . . . . . Fabricators . | . . . . . . . . . . Repair Stations . | . . . . . . . . . . Recycling Units . | . . . . . . . . . . Scanalyzers . | . . . . . . . . . . Garrison Access . | . . . . . . . . . . Data Cores Recovered 1 | . . . . 1 . . . . . Used . | . . . . . . . . . . Hacking Detections 18 | . 2 . 3 5 4 2 . . 2 Full Trace Events 6 | . . . 1 1 1 2 . . 1 Feedback Events 1 | . . . . . . 1 . . . Corruption 1 | . . . . . . 1 . . . Feedback Blocked . | . . . . . . . . . . Robot Schematics Acquired . | . . . . . . . . . . Robots Built . | . . . . . . . . . . Authchips . | . . . . . . . . . . Time . | . . . . . . . . . . Total Robot Build Rating . | . . . . . . . . . . Part Schematics Acquired . | . . . . . . . . . . Parts Built . | . . . . . . . . . . Authchips . | . . . . . . . . . . Time . | . . . . . . . . . . Total Part Build Rating . | . . . . . . . . . . Parts Repaired . | . . . . . . . . . . Time . | . . . . . . . . . . Parts Recycled . | . . . . . . . . . . Recycled Matter . | . . . . . . . . . . Retrieved Matter . | . . . . . . . . . . Retrieved Components . | . . . . . . . . . . Parts Scanalyzed . | . . . . . . . . . . Part Schematics Acquired . | . . . . . . . . . . Parts Damaged . | . . . . . . . . . . Bothacking | -11 -10 -10 -9 -9 -8 -7 -7 -7 -6 ------------ Run | Yrd Mat Min Mat Sto Mat Fac Low Low Fac Used RIF Installer . | . . . . . . . . . . Robots Hacked . | . . . . . . . . . . Non-combat . | . . . . . . . . . . Combat . | . . . . . . . . . . Robot Hacks Applied . | . . . . . . . . . . Relay Couplers Released . | . . . . . . . . . . Fabnet Peak Effective % . | . . . . . . . . . . Robots Rewired . | . . . . . . . . . . Allies Hacked . | . . . . . . . . . . Hacks Repelled . | . . . . . . . . . . Allies | -11 -10 -10 -9 -9 -8 -7 -7 -7 -6 -------- Run | Yrd Mat Min Mat Sto Mat Fac Low Low Fac Total Allies 10 | . . . . 10 . . . . . Largest Group 10 | . . . . 10 . . . . . Highest-Rated Group 88 | . . . . 88 . . . . . Highest-Rated Ally 16 | . . . . 16 . . . . . Total Orders . | . . . . . . . . . . Ally Attacks 59 | . . . . 59 . . . . . Total Damage 560 | . . . . 560 . . . . . Kills 12 | . . . . 12 . . . . . Allies Corrupted 1 | . . . . 1 . . . . . Allies Melted . | . . . . . . . . . . Intel | -11 -10 -10 -9 -9 -8 -7 -7 -7 -6 ------- Run | Yrd Mat Min Mat Sto Mat Fac Low Low Fac Active Infowar (turns) 3993 | 8 262 223 464 725 587 288 762 112 562 Optics 134 | . . . . . . . . . 134 Sensors 1834 | . . . . . 278 288 762 112 394 Structural 3308 | . . . 464 725 587 288 762 112 370 Seismic 493 | 8 262 223 . . . . . . . Jamming 41 | . . . . . . . . . 41 ECM 618 | . . . 84 534 . . . . . Robot Analysis Total . | . . . . . . . . . . Derelict Logs Recovered 1 | . . . . . . . 1 . . Drone Launches . | . . . . . . . . . . Drone Recoveries . | . . . . . . . . . . Exploration | -11 -10 -10 -9 -9 -8 -7 -7 -7 -6 ------------- Run | Yrd Mat Min Mat Sto Mat Fac Low Low Fac Turns Passed 4156 | 63 262 230 465 725 587 288 762 112 662 Spaces Moved 2133 | 35 163 130 277 437 266 146 347 44 288 Core 15 | 2 . . . . . . . . 13 Treads . | . . . . . . . . . . Legs 2118 | 33 163 130 277 437 266 146 347 44 275 Wheels . | . . . . . . . . . . Hover . | . . . . . . . . . . Flight . | . . . . . . . . . . Fastest Speed 50 | 50 120 120 120 120 120 190 120 260 120 Average Speed 153 | 116 120 120 120 120 155 190 186 260 201 Slowest Speed 550 | 120 120 120 120 120 190 190 260 260 550 Overloaded Moves . | . . . . . . . . . . Propulsion Burnouts . | . . . . . . . . . . Robots Hopped . | . . . . . . . . . . Potential Cave-ins . | . . . . . . . . . . Cave-ins Triggered . | . . . . . . . . . . Exploration Rate (%) 29 | 4 31 32 39 76 24 5 54 13 12 Regions Visited 9 Branch Regions 4 Pre-discovered Areas . | . . . . . . . . . . Known Exits Taken . | . . . . . . . . . . Unknown Exits Taken 9 | 1 1 1 1 1 1 1 1 1 . Scrap Searched 3 | . . 1 . . . . 2 . . Spaces Dug . | . . . . . . . . . . Terrain Destroyed 34 | . . . 4 . . 1 17 . 12 Melee . | . . . . . . . . . . Projectile 30 | . . . . . . 1 17 . 12 AOE 4 | . . . 4 . . . . . . Terrain Rammed . | . . . . . . . . . . Walls Destroyed . | . . . . . . . . . . Machines Disabled . | . . . . . . . . . . Actions | -11 -10 -10 -9 -9 -8 -7 -7 -7 -6 --------- Run | Yrd Mat Min Mat Sto Mat Fac Low Low Fac Total 2576 | 46 199 165 358 528 350 155 407 43 325 Wait 105 | . 16 6 27 11 11 1 26 . 7 Move 2124 | 34 162 129 276 436 265 145 346 43 288 Hop . | . . . . . . . . . . Pick Up 36 | 1 5 1 9 8 7 2 3 . . Fast Attach 14 | 7 . . 2 . 2 . 1 . 2 Attach 33 | . . 2 6 5 8 2 3 . 7 Detach 3 | . . . 1 1 1 . . . . Swap 10 | . . 2 3 . 1 2 1 . 1 Drop 19 | . . 3 5 4 4 2 1 . . Fire 211 | 4 15 22 26 56 45 1 26 . 16 Melee 4 | . . . . . 4 . . . . Ram 2 | . . . . . . . . . 2 Kick 14 | . 1 . 3 6 2 . . . 2 Crush . | . . . . . . . . . . Escape Stasis . | . . . . . . . . . . Rewire 1 | . . . . 1 . . . . . Trap . | . . . . . . . . . . Miscellaneous . | . . . . . . . . . . Route ------- -11/Scrapyard -10/Materials -10/Mines -9/Materials (discovered 2 exits: [*Min] / *Sto) -9/Storage -8/Materials -7/Factory -7/Lower Caves -7/Lower Caves -6/Factory History --------- Turn | Location | Event 23 | -11/Scrapyard | Discovered new exit (range 16) 64 | -11/Scrapyard | Entered Materials 303 | -10/Materials | Discovered new exit (range 7) 305 | -10/Materials | Build established: Mutant 326 | -10/Materials | Entered Mines 363 | -10/Mines | Found DCF Scrap (16 items) 536 | -10/Mines | Assembled infested the area 541 | -10/Mines | Discovered new exit (range 9) 546 | -10/Mines | Core integrity fell below 50% 556 | -10/Mines | Entered Materials 556 | -9/Materials | Evolved 2 slots: Utility x2 582 | -9/Materials | Lost 3 parts (1p1u1w) 926 | -9/Materials | Discovered new exit (range 8) 962 | -9/Materials | Discovered new exit (range 7) 1021 | -9/Materials | Entered Storage 1123 | -9/Storage | Assisted by bots powering up and referring to "LRC-V3" 1324 | -9/Storage | Lost 5 allies 1386 | -9/Storage | Lost 4 allies 1728 | -9/Storage | Discovered new exit (range 15) 1746 | -9/Storage | Entered Materials 1746 | -8/Materials | Evolved 2 slots: Utility x2 1837 | -8/Materials | Build established: Scavenger-Mutant 2314 | -8/Materials | Discovered new exit (range 8) 2333 | -8/Materials | Entered Factory 2333 | -7/Factory | Evolved 2 slots: Power x1, Weapon x1 2606 | -7/Factory | Discovered new exit (range 9) 2621 | -7/Factory | Entered Lower Caves 2635 | -7/Lower Caves | Build established: Skirmisher 2746 | -7/Lower Caves | Found DCF Scrap (12 items) 3170 | -7/Lower Caves | Learned Factory interactive machine intel 3301 | -7/Lower Caves | Build established: Tank 3310 | -7/Lower Caves | Entered a destroyed Warlord outpost 3348 | -7/Lower Caves | Discovered new exit (range 10) 3383 | -7/Lower Caves | Entered another Lower Caves area 3433 | -7/Lower Caves | Discovered new exit (range 10) 3495 | -7/Lower Caves | Entered Factory 3495 | -6/Factory | Evolved 2 slots: Propulsion x1, Utility x1 3496 | -6/Factory | Loaded intel: 54 interactive machine locations 3978 | -6/Factory | Lost 3 parts (1p1n1w) 4049 | -6/Factory | Lost 8 parts (1p2n3u2w) 4135 | -6/Factory | Core integrity fell below 50% 4149 | -6/Factory | Core integrity fell below 20% 4155 | -6/Factory | Lost 5 parts (1p1n3u) 4157 | -6/Factory | Destroyed by G-50 Soldier with Heavy Laser Last Messages --------------- Hrd. Medium Armor Plating destroyed. ALERT: Potential suspicious activity detected, Programmers report to Factory Zone 5H. Flexi-carbon Leg destroyed. The unstable cave ceiling collapses. Imp. Sensor Array destroyed. The unstable cave ceiling collapses. K-01 Serf destroyed. K-01 Serf collects debris. Acquired Fusion Compressor. K-01 Serf collects debris. Carbon-fiber Leg destroyed. System corrupted: Component data lost. Imp. Carbon-fiber Leg destroyed. Tactical Coordination Suite destroyed. Slammed into Y-54 Guardian. Slammed into G-50 Soldier. Fusion Compressor destroyed. Transmission Jammer destroyed. Weapon Cycler destroyed. Map ----- +----------------------------------------------------+ | ?????????????????????????????????????????????????? | | ?????????????????????????????????????????????????? | | ?????????????????????????????????????????????????? | | ?????????????????????????????????????????????????? | | ?????????????????????""??????????????????????????? | | ????????????????????"""??????????????????????????? | | ????????????????????"F???????????????????????????? | | ????????????????????"""??????????????????????????? | | ????????????????????"""??????????????????????????? | | ????????????????????"""??????????????????????????? | | ?????????????????????????????????????????????????? | | ????????????????????????#+###????????????????????? | | ???????????????????????? #????????????????????? | | ???????????????????????? #????????????????????? | | ???????????????????????? #????????????????????? | | ????????????????????????# #????????????????????? | | ????????????????????????# #????????????????????? | | ????????????????????????# #????????????????????? | | ?????????"""????????????# ##############???????? | | ?????????"R?????????????# # #???????? | | ?????????"""????????????# # #???????? | | ?????????"""????????????# # !#???????? | | ????????????????????????+ # #???????? | | ????????????????????????# # """ #???????? | | ????????????????????????# # """"" #???????? | | ???????????##############@ # """"" #???????? | | ???????????# # # #???????? | | ?????????????? """ """ + # """ ! #???????? | | ?????????????? """ """ # # """"" #???????? | | ???????????????""" """ # # """"" #???????? | | ????????????? ?# g# #???????? | | ??################+####?# ##/###########???????? | | ??# ## #????#RYg #??????????? | | ??# ! ## #????# #??????????? | | ??# ## #????# #??????????? | | ??# ## ##???# ####### #??????????? | | ??# [ # ##### #?????# #??????????? | | ??# / " #??####+#####??????? | | ?###########+#### ######+##+#??# #??????? | | ## % # ### ##? ????????# #??????? | | ## """% # ### #?? ?????????# #??????? | | # """ + ! #??" ""???????# #??????? | | ?# """ # ! ### ## "R""???????# #??????? | | ?# # % # ## """????????# #??????? | | # """ # % # # ??????????# #??????? | | # """ # # # ##########??# #??????? | | # """ #??# % #??????? | | ##T #??#####/####??????? | | #" # #????# =! #######+# | | # """ """ ###### | +----------------------------------------------------+ Best States ------------- Heat Dissipation 42 Energy Generation 28 Energy Capacity 375 Matter Stores 300 Matter Capacity 300 Sight Range 22 Robot Scan Range 15 Terrain Scan Density 10 ECM Strength 1 Jamming Range 12 Armor Coverage 375 Resistance: KI 20 Weapon Cycling 15 Evasion (%) 55 Target Analysis 5 Offensive Hacking 20 Item Schematics ----------------- None Robot Schematics ------------------ None Fabricated ------------ Nothing Repaired ---------- Nothing Alien Tech Used ----------------- None Achievements -------------- None Challenges ------------ None Game ------ Seed ReflectiveNeutrinoInverter Manual? 0 Play Time 00:51:26 Cumulative 17.1 hours Start 2025.05.17 @ 13:05:58 End 2025.05.17 @ 13:55:30 Sessions 1 Manual Loads 0 Difficulty Rogue Special Mode None Game No. 28 Rogue 28 Adventurer 0 Explorer 0 Win Type - Total 0 Types 0/0/0/0/0/0/0/0/0/0 Lore% 4 Gallery% 16 Achievement% 17 Wizard Run 0 Options --------- Layout 1 ASCII 0 Keyboard 0 Movement Vi Keybinds 0 Fullscreen 1 Font 32/SmallcapsGlow Map View 50x35 Zoom Use 0% Tactical HUD 0 Map Filters NONE Filters NONE Steam 1 RUN: 3aaacc0b-b9a9-4093-9de5-9ce5671c07b3